bitfinex/quotes_SOLUSD_20250421
["timestamp","ask_amount","ask_price","bid_price","bid_amount"]
[1745201387634,12.37109329,140.97,140.95,261.9]
[1745201391431,12.37109329,140.98,140.95,261.9]
[1745201391635,12.37109329,140.96,140.95,261.9]
[1745201392930,31.02074215,140.96,140.95,261.9]
[1745201396743,18.64964886,140.96,140.95,261.9]
[1745201396947,1.625,140.98,140.95,261.9]
[1745201397116,80.8,141.0,140.95,261.9]
[1745201397316,12.37109329,140.99,140.95,261.9]
[1745201397614,18.64964886,141.0,140.95,261.9]
[1745201397829,12.37109329,140.98,140.95,261.9]
[1745201398028,18.64964886,141.0,140.95,261.9]
[1745201398234,7.7102,141.01,140.95,261.9]
[1745201398443,1.625,141.01,140.95,261.9]
[1745201398623,12.37109329,141.0,140.95,261.9]
[1745201398940,1.625,141.01,140.95,261.9]
[1745201399141,12.37109329,141.0,140.95,261.9]
[1745201399653,12.37109329,140.99,140.95,261.9]
[1745201399953,1.625,141.01,140.95,261.9]
[1745201400168,12.37109329,141.0,140.95,261.9]
[1745201400341,80.8,141.04,140.95,261.9]
[1745201400542,12.37109329,140.98,140.95,261.9]
[1745201401053,18.64964886,141.03,140.95,287.9]
[1745201401232,12.37109329,140.98,140.95,287.9]
[1745201401430,12.37109329,140.99,140.95,287.9]
[1745201401955,12.37109329,141.0,140.95,287.9]
[1745201402143,12.37109329,141.02,140.95,287.9]
[1745201402857,12.37109329,140.99,140.95,287.9]
[1745201403030,12.37109329,140.98,140.95,287.9]
[1745201403951,12.37109329,140.98,140.95,261.9]
[1745201404758,12.37109329,140.97,140.95,261.9]
[1745201405159,12.37109329,140.96,140.95,261.9]
[1745201406946,1.5134,140.98,140.95,261.9]
[1745201407158,12.37109329,140.96,140.95,261.9]
[1745201408559,1.5134,140.98,140.95,261.9]
[1745201408854,12.37109329,140.97,140.95,261.9]
[1745201409265,1.5134,141.01,140.95,261.9]
[1745201409463,12.37109329,140.98,140.95,261.9]
[1745201410067,12.37109329,140.97,140.95,261.9]
[1745201411064,1.5134,141.01,140.95,261.9]
[1745201411453,12.37109329,140.99,140.95,261.9]
[1745201414866,1.5134,141.01,140.95,261.9]
[1745201415066,12.37109329,141.0,140.95,261.9]
[1745201415275,12.37109329,141.0,140.95,287.9]
[1745201415652,12.37109329,140.99,140.95,287.9]
[1745201416364,12.37109329,140.98,140.95,287.9]
[1745201417770,12.37109329,140.96,140.95,287.9]
[1745201417973,12.37109329,140.96,140.95,261.9]
[1745201420648,12.37109329,140.97,140.95,261.9]
[1745201420977,20.16304886,141.01,140.95,261.9]
[1745201421274,1.5134,141.01,140.95,261.9]
[1745201421479,12.37109329,141.0,140.95,261.9]
[1745201421656,12.37109329,140.98,140.95,261.9]
[1745201421858,12.37109329,140.97,140.95,261.9]
[1745201422877,12.37109329,140.96,140.95,261.9]
[1745201425075,12.37109329,140.97,140.95,261.9]
[1745201425278,12.37109329,140.98,140.95,261.9]
[1745201425801,12.37109329,140.97,140.95,261.9]
[1745201427877,12.37109329,140.98,140.95,261.9]
[1745201428083,12.37109329,140.98,140.95,242.94]
[1745201428387,12.37109329,140.98,140.96,17.82]
[1745201429283,12.37109329,140.97,140.96,17.82]
[1745201433268,7.92415671,140.97,140.96,17.82]
[1745201433899,9.47745671,140.97,140.96,17.82]
[1745201435667,1.5533,140.97,140.96,17.82]
[1745201435868,24.80864886,140.99,140.96,17.82]
[1745201436069,7.92415671,140.97,140.96,17.82]
[1745201436571,6.159,140.99,140.96,17.82]
[1745201436763,7.92415671,140.97,140.96,17.82]
[1745201438299,26.57380557,140.97,140.96,17.82]
[1745201444620,7.92415671,140.97,140.96,17.82]
[1745201445516,26.57380557,140.97,140.96,17.82]
[1745201448226,26.57380557,140.97,140.94,0.063]
[1745201448401,26.57380557,140.95,140.94,0.063]
[1745201452039,1.6177,140.96,140.94,0.063]
[1745201452407,7.92415671,140.95,140.94,0.063]
[1745201452804,26.57380557,140.95,140.94,0.063]
[1745201453009,26.57380557,140.95,140.93,0.063]
[1745201453309,7.92415671,140.94,140.93,0.063]
[1745201454008,26.57380557,140.94,140.93,0.063]
[1745201455218,26.57380557,140.94,140.93,17.343]
[1745201462630,7.92415671,140.94,140.93,17.343]
[1745201464129,26.57380557,140.94,140.93,17.343]
[1745201465524,28.07900557,140.94,140.93,17.28]
[1745201465846,28.07900557,140.94,140.9,243.083]
[1745201466027,7.92415671,140.91,140.9,243.083]
[1745201466227,20.15484886,140.94,140.9,0.063]
[1745201466543,7.92415671,140.91,140.9,0.063]
[1745201469140,26.57380557,140.91,140.9,0.063]
[1745201469342,58.27043241,140.91,140.9,0.063]
[1745201471124,58.27043241,140.91,140.89,0.063]
[1745201471125,18.64964886,140.9,140.89,0.063]
[1745201471344,26.57380557,140.9,140.89,0.063]
[1745201473028,26.57380557,140.9,140.88,0.063]
[1745201473224,26.57380557,140.89,140.88,0.063]
[1745201473633,7.92415671,140.89,140.88,0.063]
[1745201474034,7.93057731,140.89,140.88,0.063]
[1745201475256,80.8,140.92,140.88,17.343]
[1745201475430,7.93057731,140.91,140.88,17.343]
[1745201475865,80.8,140.92,140.88,25.27357731]
[1745201476539,7.93057731,140.91,140.88,17.343]
[1745201477355,7.93057731,140.9,140.88,17.343]
[1745201478033,7.93057731,140.91,140.88,17.343]
[1745201479349,7.93057731,140.9,140.88,17.343]
[1745201479649,7.93057731,140.91,140.88,17.343]
[1745201479854,80.8,140.92,140.88,17.343]
[1745201480058,7.93057731,140.91,140.88,17.343]
[1745201482041,80.8,140.92,140.88,17.343]
[1745201482042,7.93057731,140.9,140.88,17.343]
[1745201482253,7.93057731,140.89,140.88,17.343]
[1745201483564,26.58022617,140.89,140.88,17.343]
[1745201485160,26.58022617,140.89,140.88,17.06]
[1745201485351,99.44964886,140.88,140.86,17.06]
[1745201485554,7.93057731,140.87,140.86,17.06]
[1745201486567,26.58022617,140.87,140.86,17.06]
[1745201488652,26.58022617,140.87,140.85,0.063]
[1745201488953,26.58022617,140.87,140.84,0.063]
[1745201488954,58.30253541,140.86,140.84,0.063]
[1745201489154,39.65288655,140.85,140.84,0.063]
[1745201489460,25.21444886,140.83,140.82,0.063]
[1745201489762,18.64964886,140.82,140.8,0.063]
[1745201489958,7.93057731,140.81,140.8,0.063]
[1745201490458,7.93057731,140.79,140.78,0.063]
[1745201491062,26.58022617,140.79,140.78,0.063]
[1745201491470,58.30253541,140.79,140.78,0.063]
[1745201491765,26.58022617,140.79,140.78,0.063]
[1745201491944,7.93057731,140.79,140.78,0.063]
[1745201494564,58.30253541,140.79,140.78,0.063]
[1745201494857,58.30253541,140.79,140.73,26.0]
[1745201495159,7.93057731,140.74,140.73,26.0]
[1745201495374,7.93057731,140.75,140.73,43.06]
[1745201495678,7.93057731,140.75,140.73,17.06]
[1745201497270,7.93057731,140.74,140.73,17.06]
[1745201498479,18.64964886,140.76,140.73,17.06]
[1745201498679,7.93057731,140.74,140.73,17.06]
[1745201498856,18.64964886,140.77,140.73,17.06]
[1745201499055,7.93057731,140.74,140.73,17.06]
[1745201499274,18.64964886,140.77,140.73,17.06]
[1745201499574,7.93057731,140.74,140.73,17.06]
[1745201502955,7.93057731,140.75,140.73,17.06]
[1745201503161,7.93057731,140.77,140.73,17.06]
[1745201503376,18.64964886,140.81,140.73,17.06]
[1745201503579,7.93057731,140.76,140.73,17.06]
[1745201504082,7.93057731,140.75,140.73,17.06]
[1745201505265,7.93057731,140.76,140.73,17.06]
[1745201506884,7.93057731,140.77,140.73,17.06]
[1745201508400,7.93057731,140.76,140.73,17.06]
[1745201508882,7.93057731,140.77,140.73,17.06]
[1745201509270,7.93057731,140.76,140.73,17.06]
[1745201509591,7.93057731,140.74,140.73,17.06]
[1745201515791,7.93057731,140.74,140.72,243.263]
[1745201515792,18.64964886,140.73,140.72,243.263]
[1745201516089,26.58022617,140.73,140.72,260.323]
[1745201518601,26.58022617,140.73,140.72,17.06]
[1745201518772,26.58022617,140.73,140.67,0.063]
[1745201518977,7.93057731,140.68,140.67,0.063]
[1745201520793,80.8,140.72,140.67,0.063]
[1745201520988,7.93057731,140.68,140.67,0.063]
[1745201521189,80.8,140.72,140.67,0.063]
[1745201521394,7.93057731,140.68,140.67,0.063]
[1745201523287,7.93057731,140.68,140.65,0.063]
[1745201523288,18.64964886,140.67,140.65,0.063]
[1745201523506,7.93057731,140.66,140.65,0.063]
[1745201525007,80.8,140.71,140.65,0.063]
[1745201525193,7.93057731,140.66,140.65,0.063]
[1745201525388,7.93057731,140.66,140.65,17.143]
[1745201526897,50.3719581,140.7,140.65,17.143]
[1745201527098,7.93057731,140.66,140.65,17.143]
[1745201528110,28.19372617,140.66,140.65,17.08]
[1745201528323,18.64964886,140.65,140.64,18.2225848]
[1745201528530,26.58022617,140.65,140.64,18.2225848]
[1745201528806,58.30253541,140.65,140.58,0.063]
[1745201529018,7.93057731,140.59,140.58,0.063]
[1745201529308,31.72230924,140.63,140.58,26.063]
[1745201529309,7.93057731,140.6,140.58,26.063]
[1745201529908,7.93057731,140.59,140.58,26.063]
[1745201530291,7.93057731,140.59,140.58,0.063]
[1745201531299,12.44659936,140.59,140.58,0.063]
[1745201534308,31.09624822,140.59,140.58,0.063]
[1745201534515,31.09624822,140.59,140.52,0.063]
[1745201534692,12.44659936,140.58,140.52,26.063]
[1745201535014,12.44659936,140.58,140.52,0.063]
[1745201535309,1.6135,140.61,140.54,17.08]
[1745201535509,12.44659936,140.59,140.54,29.52659936]
[1745201535719,93.24659936,140.63,140.54,55.52659936]
[1745201535921,12.44659936,140.59,140.54,55.52659936]
[1745201536292,12.44659936,140.58,140.54,43.08]
[1745201536689,80.8,140.63,140.55,12.44659936]
[1745201536890,12.44659936,140.61,140.55,12.44659936]
[1745201537400,80.8,140.63,140.54,43.08]
[1745201537401,12.44659936,140.59,140.54,55.52659936]
[1745201539113,12.44659936,140.58,140.54,43.08]
[1745201539514,12.44659936,140.58,140.54,17.08]
[1745201544813,93.24659936,140.63,140.54,17.08]
[1745201544993,12.44659936,140.59,140.54,29.52659936]
[1745201545195,93.24659936,140.63,140.54,29.52659936]
[1745201545401,93.24659936,140.63,140.55,12.44659936]
[1745201545708,93.24659936,140.63,140.54,29.52659936]
[1745201545709,12.44659936,140.59,140.54,29.52659936]
[1745201546193,12.44659936,140.58,140.54,17.08]
[1745201546816,12.44659936,140.58,140.55,26.0]
[1745201547214,93.24659936,140.63,140.55,26.0]
[1745201547702,12.44659936,140.59,140.55,26.0]
[1745201548818,12.44659936,140.58,140.55,26.0]
[1745201549020,12.44659936,140.58,140.54,17.08]
[1745201551025,80.8,140.63,140.55,12.44659936]
[1745201551207,12.44659936,140.61,140.56,12.44659936]
[1745201551406,0.03,140.64,140.59,26.0]
[1745201551610,12.44659936,140.63,140.6,17.06]
[1745201552011,0.03,140.64,140.6,17.06]
[1745201552207,12.47659936,140.64,140.6,17.06]
[1745201552409,12.47659936,140.64,140.61,260.7]
[1745201552614,0.03,140.64,140.61,260.7]
[1745201552829,12.47659936,140.64,140.61,260.7]
[1745201554924,0.03,140.64,140.61,273.14659936]
[1745201555722,0.03,140.64,140.63,12.44659936]
[1745201556025,0.03,140.64,140.61,260.7]
[1745201556242,12.47659936,140.64,140.61,260.7]
[1745201556427,0.03,140.64,140.61,260.7]
[1745201556735,12.47659936,140.64,140.61,260.7]
[1745201557342,0.03,140.64,140.61,260.7]
[1745201557807,12.47659936,140.64,140.61,260.7]
[1745201558013,0.03,140.64,140.61,260.7]
[1745201560342,0.03,140.64,140.61,273.14659936]
[1745201560640,0.03,140.64,140.62,12.44659936]
[1745201560948,0.03,140.64,140.61,273.14659936]
[1745201561537,0.03,140.64,140.61,260.7]
[1745201562231,0.03,140.64,140.63,26.0]
[1745201563948,12.4638692,140.64,140.63,26.0]
[1745201564944,12.4638692,140.64,140.61,260.7]
[1745201565122,12.4338692,140.63,140.61,286.7]
[1745201565324,12.4338692,140.62,140.61,260.7]
[1745201565522,12.4638692,140.64,140.61,260.7]
[1745201565819,0.03,140.64,140.61,260.7]
[1745201566752,12.4638692,140.64,140.61,260.7]
[1745201568036,0.03,140.64,140.61,260.7]
[1745201571139,0.03,140.64,140.61,268.6405]
[1745201572141,0.03,140.64,140.61,262.0505]
[1745201572336,12.4638692,140.64,140.61,286.7]
[1745201572540,12.4338692,140.63,140.61,286.7]
[1745201572739,12.4338692,140.63,140.61,260.7]
[1745201574245,12.4338692,140.62,140.61,260.7]
[1745201579774,0.03,140.64,140.61,260.7]
[1745201579982,12.4338692,140.62,140.61,260.7]
[1745201580559,12.4338692,140.63,140.61,260.7]
[1745201581085,0.03,140.64,140.61,260.7]
[1745201581455,12.4338692,140.63,140.61,260.7]
[1745201581987,12.4638692,140.64,140.61,260.7]
[1745201583080,0.03,140.64,140.63,26.0]
[1745201583588,12.4338692,140.68,140.64,26.0]
[1745201584395,12.4338692,140.67,140.64,26.0]
[1745201584692,12.4338692,140.66,140.64,26.0]
[1745201586684,12.4338692,140.65,140.64,26.0]
[1745201587190,12.4638692,140.7,140.64,26.0]
[1745201587191,12.4338692,140.66,140.64,43.04]
[1745201587356,12.4338692,140.65,140.64,43.04]
[1745201587752,12.4338692,140.65,140.64,17.04]
[1745201590807,24.8677384,140.65,140.64,17.04]
[1745201591098,24.8677384,140.65,140.61,243.64]
[1745201591099,24.8677384,140.65,140.63,17.04]
[1745201591261,24.8677384,140.64,140.63,17.04]
[1745201591464,24.8677384,140.64,140.57,0.063]
[1745201591675,12.4338692,140.58,140.57,0.063]
[1745201591886,12.4338692,140.59,140.57,0.063]
[1745201592392,12.4338692,140.58,140.57,0.063]
[1745201594296,12.4338692,140.63,140.57,0.063]
[1745201594481,12.4338692,140.58,140.57,0.063]
[1745201594661,12.4338692,140.59,140.57,0.063]
[1745201595068,12.4338692,140.58,140.57,0.063]
[1745201595381,12.4338692,140.58,140.57,17.103]
[1745201595583,18.64964886,140.65,140.57,17.103]
[1745201595901,12.4338692,140.61,140.59,26.0]
[1745201596093,12.4338692,140.61,140.57,17.103]
[1745201596293,12.4338692,140.6,140.59,26.0]
[1745201598901,12.4338692,140.61,140.59,26.0]
[1745201599621,1.5619,140.67,140.57,17.103]
[1745201599906,12.4338692,140.66,140.58,1.0]
[1745201600597,13.9957692,140.67,140.58,1.0]
[1745201600799,12.4338692,140.66,140.59,1.3505]
[1745201601001,1.5619,140.67,140.59,1.3505]
[1745201601002,13.9957692,140.67,140.59,2.3505]
[1745201601190,6.0419,140.69,140.6,18.64964886]
[1745201601498,7.95316141,140.68,140.6,18.64964886]
[1745201601690,6.0419,140.69,140.6,19.64964886]
[1745201602004,7.95316141,140.67,140.6,19.64964886]
[1745201603189,7.98316141,140.7,140.62,18.64964886]
[1745201603510,12.42400072,140.69,140.63,17.04]
[1745201603806,0.03,140.7,140.63,17.04]
[1745201604000,12.45400072,140.7,140.63,17.04]
[1745201605617,12.45400072,140.7,140.66,26.0]
[1745201605914,12.45400072,140.7,140.67,243.5]
[1745201607403,0.03,140.7,140.69,26.0]
[1745201607704,0.03,140.7,140.69,43.0]
[1745201610108,12.45400072,140.7,140.69,43.0]
[1745201610605,0.03,140.7,140.69,43.0]
[1745201610810,12.45400072,140.7,140.69,43.0]
[1745201612404,12.45400072,140.7,140.69,17.0]
[1745201615908,26.38550144,140.7,140.69,17.0]
[1745201616392,13.96150072,140.7,140.69,17.0]
[1745201616598,26.38550144,140.7,140.69,17.0]
[1745201619900,26.38550144,140.7,140.67,243.5]
[1745201620100,12.42400072,140.68,140.57,0.063]
[1745201620304,12.42400072,140.61,140.57,0.063]
[1745201620619,12.42400072,140.61,140.57,3.54444605]
[1745201620917,12.42400072,140.62,140.57,0.063]
[1745201621121,12.42400072,140.62,140.58,26.0]
[1745201621303,12.42400072,140.62,140.57,0.063]
[1745201621496,12.42400072,140.62,140.58,0.063]
[1745201621697,12.42400072,140.62,140.58,26.063]
[1745201621912,6.0232,140.67,140.58,26.063]
[1745201622097,12.42400072,140.62,140.58,26.063]
[1745201622600,12.42400072,140.63,140.58,26.063]
[1745201623101,13.96150072,140.7,140.58,1.063]
[1745201623298,12.42400072,140.67,140.59,18.64964886]
[1745201623601,13.96150072,140.7,140.6,6.2983]
[1745201623602,1.5375,140.7,140.6,6.2983]
[1745201623802,0.03,140.7,140.62,18.64964886]
[1745201624614,0.03,140.7,140.63,1.0]
[1745201624815,0.03,140.7,140.64,18.64964886]
[1745201625219,0.03,140.7,140.65,260.46]
[1745201626215,0.03,140.7,140.66,18.64964886]
[1745201626518,0.03,140.7,140.65,260.46]
[1745201626713,0.03,140.7,140.68,26.0]
[1745201627509,12.45400072,140.7,140.68,26.0]
[1745201629117,0.03,140.7,140.68,26.0]
[1745201629622,0.03,140.7,140.69,17.0]
[1745201630200,12.45400072,140.7,140.68,26.0]
[1745201630404,12.42400072,140.69,140.65,243.46]
[1745201630613,12.42400072,140.68,140.66,17.0]
[1745201631510,12.42400072,140.69,140.66,17.0]
[1745201632425,0.03,140.7,140.66,17.0]
[1745201636228,12.45400072,140.7,140.69,26.0]
[1745201637630,0.03,140.7,140.69,26.0]
[1745201637928,12.45400072,140.7,140.69,26.0]
[1745201639218,12.45400072,140.7,140.69,269.42]
[1745201639419,24.87800144,140.7,140.69,243.42]
[1745201639620,24.87800144,140.7,140.69,260.4]
[1745201640727,32.90690144,140.7,140.69,260.4]
[1745201645533,32.90690144,140.7,140.65,243.42]
[1745201645748,18.64964886,140.69,140.66,16.98]
[1745201646231,18.64964886,140.69,140.58,0.063]
[1745201646420,1.5192,140.68,140.58,0.063]
[1745201646936,12.42400072,140.61,140.58,0.063]
[1745201647130,12.42400072,140.62,140.58,0.063]
[1745201648532,12.42400072,140.62,140.6,26.0]
[1745201649634,12.42400072,140.63,140.6,26.0]
[1745201650153,12.42400072,140.62,140.6,26.0]
[1745201651632,12.42400072,140.63,140.6,26.0]
[1745201651818,12.42400072,140.62,140.6,26.0]
[1745201652020,12.42400072,140.63,140.6,26.0]
[1745201652219,12.42400072,140.64,140.6,26.0]
[1745201653510,12.42400072,140.63,140.6,26.0]
[1745201654717,1.5192,140.68,140.6,26.0]
[1745201655022,12.42400072,140.62,140.6,26.0]
[1745201655341,12.42400072,140.63,140.61,260.48]
[1745201656347,12.42400072,140.62,140.61,260.48]
[1745201658340,12.42400072,140.63,140.61,260.48]
[1745201659439,7.95995662,140.63,140.61,260.48]
[1745201661451,7.95995662,140.62,140.61,260.48]
[1745201662741,1.5192,140.68,140.61,260.48]
[1745201663142,7.95995662,140.64,140.61,260.48]
[1745201663533,7.95995662,140.63,140.61,260.48]
[1745201663753,7.95995662,140.64,140.61,260.48]
[1745201666759,7.95995662,140.65,140.61,260.48]
[1745201666939,7.95995662,140.66,140.61,260.48]
[1745201667336,7.95995662,140.67,140.61,260.48]
[1745201667760,1.5192,140.68,140.61,260.48]
[1745201667761,7.95995662,140.66,140.61,260.48]
[1745201669762,1.5192,140.68,140.61,260.48]
[1745201669939,7.95995662,140.66,140.61,260.48]
[1745201670360,1.5192,140.68,140.61,260.48]
[1745201670549,7.95995662,140.66,140.61,260.48]
[1745201670938,1.5192,140.68,140.61,260.48]
[1745201671138,7.95995662,140.66,140.61,260.48]
[1745201671957,7.95995662,140.65,140.61,260.48]
[1745201672767,7.95995662,140.63,140.62,26.0]
[1745201672965,7.95995662,140.63,140.61,260.48]
[1745201673341,7.95995662,140.62,140.61,260.48]
[1745201674040,1.5192,140.68,140.61,260.48]
[1745201674242,7.95995662,140.65,140.61,260.48]
[1745201675445,7.95995662,140.66,140.61,260.48]
[1745201678481,7.95995662,140.69,140.61,349.1805]
[1745201678764,7.98995662,140.7,140.62,18.64964886]
[1745201678969,0.03,140.7,140.62,18.64964886]
[1745201679761,0.03,140.7,140.64,26.0]
[1745201681571,0.03,140.7,140.64,106.7]
[1745201682266,0.03,140.7,140.68,26.0]
[1745201682460,0.03,140.7,140.69,16.94]
[1745201689682,0.03,140.7,140.69,61.58964886]
[1745201690693,0.03,140.7,140.69,35.58964886]
[1745201690862,0.03,140.71,140.69,35.58964886]
[1745201692586,0.03,140.71,140.7,18.64964886]
[1745201692882,0.03,140.71,140.7,44.64964886]
[1745201694691,0.03,140.71,140.7,26.0]
[1745201695889,0.03,140.71,140.7,44.64964886]
[1745201697667,0.03,140.71,140.7,288.00964886]
[1745201700477,0.03,140.71,140.7,304.90964886]
[1745201701702,0.03,140.73,140.71,18.64964886]
[1745201702105,0.03,140.76,140.71,18.64964886]
[1745201702404,0.03,140.76,140.71,100.34964886]
[1745201702592,0.03,140.76,140.71,101.76993918]
[1745201704178,0.03,140.76,140.73,18.64964886]
[1745201705092,0.03,140.76,140.75,44.64964886]
[1745201705294,0.03,140.76,140.75,26.0]
[1745201705507,0.03,140.76,140.75,16.9]
[1745201706975,0.03,140.76,140.75,42.9]
[1745201707702,0.03,140.77,140.76,18.64964886]
[1745201708404,0.03,140.77,140.75,16.9]
[1745201708583,0.03,140.77,140.76,18.64964886]
[1745201709896,0.03,140.77,140.75,84.21690137]
[1745201710090,0.03,140.77,140.76,16.9]
[1745201711998,0.03,140.77,140.76,260.18]
[1745201715391,0.03,140.78,140.76,260.18]
[1745201717307,0.03,140.81,140.79,18.64964886]
[1745201717481,0.03,140.81,140.79,26.0]
[1745201720310,0.03,140.81,140.77,18.64964886]
[1745201720815,0.03,140.81,140.77,20.06929911]
[1745201721508,0.03,140.81,140.77,100.76929911]
[1745201721702,0.03,140.81,140.78,7.8639]
[1745201721900,0.03,140.81,140.79,20.06913975]
[1745201722618,0.03,140.81,140.8,44.64964886]
[1745201723318,0.03,140.81,140.8,26.0]
[1745201726221,0.03,140.81,140.76,278.82964886]
[1745201729414,0.03,140.81,140.79,26.0]
[1745201733698,0.03,140.81,140.8,16.84]
[1745201738528,0.03,140.81,140.8,260.02]
[1745201741409,7.96693668,140.81,140.8,243.18]
[1745201741720,16.22923668,140.81,140.76,243.18]
[1745201741904,7.93693668,140.77,140.71,84.21282113]
[1745201742106,8.2923,140.81,140.71,84.21282113]
[1745201742332,8.2923,140.81,140.73,0.063]
[1745201743230,8.2923,140.81,140.74,18.64964886]
[1745201743534,16.22923668,140.81,140.74,18.64964886]
[1745201743702,8.2923,140.81,140.74,18.64964886]
[1745201743902,1.643,140.81,140.77,26.0]
[1745201744538,0.03,140.81,140.77,106.7]
[1745201744714,0.03,140.81,140.8,26.0]
[1745201745242,0.03,140.81,140.8,286.04]
[1745201745736,0.03,140.81,140.8,260.04]
[1745201758749,0.03,140.81,140.8,286.04]
[1745201759125,0.03,140.83,140.82,26.0]
[1745201759938,20.68004649,140.83,140.82,16.8]
[1745201763739,8.2774,140.83,140.82,16.8]
[1745201763943,20.68004649,140.83,140.82,16.8]
[1745201765657,8.2774,140.83,140.82,16.8]
[1745201765836,20.68004649,140.83,140.82,16.8]
[1745201767453,34.86759108,140.83,140.82,16.8]
[1745201767655,34.86759108,140.83,140.76,0.063]
[1745201767841,7.94054222,140.77,140.76,0.063]
[1745201769137,14.48854222,140.77,140.76,0.063]
[1745201771649,46.2507111,140.77,140.76,0.063]
[1745201771956,14.48854222,140.77,140.76,0.063]
[1745201775460,14.48854222,140.77,140.76,16.82]
[1745201775461,64.90035996,140.77,140.76,16.82]
[1745201775937,64.90035996,140.77,140.73,243.343]
[1745201776145,7.94054222,140.74,140.73,243.343]
[1745201776342,7.94054222,140.74,140.73,0.063]
[1745201779153,9.46414222,140.74,140.73,0.063]
[1745201781869,38.31016888,140.77,140.73,0.063]
[1745201781870,6.548,140.77,140.73,0.063]
[1745201782044,7.94054222,140.76,140.73,0.063]
[1745201783349,1.5322,140.78,140.73,0.063]
[1745201783553,9.47274222,140.78,140.73,0.063]
[1745201784165,7.94054222,140.77,140.73,0.063]
[1745201784355,1.5322,140.78,140.73,0.063]
[1745201784557,7.94054222,140.77,140.73,0.063]
[1745201785148,7.94054222,140.76,140.73,0.063]
[1745201785449,12.41391051,140.76,140.74,260.14]
[1745201785667,12.41391051,140.75,140.74,260.14]
[1745201794761,12.41391051,140.75,140.74,16.82]
[1745201802386,37.70535937,140.75,140.74,16.82]
[1745201802691,20.28284886,140.74,140.73,0.063]
[1745201802903,32.69675937,140.74,140.73,16.843]
[1745201803696,32.69675937,140.74,140.7,0.063]
[1745201803868,12.41391051,140.71,140.7,0.063]
[1745201805504,24.82782102,140.71,140.7,16.843]
[1745201805804,43.47746988,140.71,140.7,16.843]
[1745201806796,43.47746988,140.71,140.7,0.063]
[1745201807103,12.41391051,140.71,140.7,0.063]
[1745201807283,7.95185517,140.71,140.7,0.063]
[1745201812212,39.75927585,140.71,140.7,0.063]
[1745201812512,58.40892471,140.71,140.7,0.063]
[1745201814904,26.60150403,140.71,140.7,0.063]
[1745201815720,58.40892471,140.71,140.7,0.063]
[1745201817129,7.95185517,140.71,140.7,0.063]
[1745201819134,58.40892471,140.71,140.7,0.063]
[1745201819822,26.60150403,140.71,140.7,0.063]
[1745201820714,26.60150403,140.71,140.69,16.76]
[1745201820715,58.40892471,140.71,140.69,16.76]
[1745201821022,80.8,140.73,140.68,0.063]
[1745201821023,18.64964886,140.69,140.68,16.823]
[1745201821222,26.60150403,140.69,140.68,16.823]
[1745201822017,26.60150403,140.69,140.67,0.063]
[1745201822220,26.60150403,140.68,140.67,0.063]
[1745201823719,7.95185517,140.65,140.61,0.063]
[1745201824102,7.95185517,140.62,140.61,0.063]
[1745201824297,140.17242068,140.7,140.61,0.063]
[1745201824612,7.95185517,140.65,140.61,0.063]
[1745201824804,7.95185517,140.63,140.61,0.063]
[1745201825004,140.17242068,140.7,140.61,0.063]
[1745201825219,7.95185517,140.62,140.61,0.063]